[Event "Titled Tuesday Blitz March 22 Early 2022"]
[White "Baches Garcia, Guillermo"]
[Black "Palchuk, Andrii"]
[WhiteFideId "2209764"]
[BlackFideId "14176688"]
[WhiteElo "2463"]
[BlackElo "2319"]
[Result "0-1"]
[Round "03"]
[TimeControl "180+1"]
[Date "2022.03.22"]
[WhiteClock "0:00:06"]
[BlackClock "0:00:07"]

1. e4 {[%clk 0:03:00]}  g6 {[%clk 0:02:49]} 2. d4 {[%clk 0:03:00]}  Bg7 {[%clk 0:02:49]} 3. Be3 {[%clk 0:03:00]}  d6 {[%clk 0:02:49]} 4. Qd2 {[%clk 0:03:00]}  a6 {[%clk 0:02:50]} 5. c4 {[%clk 0:02:59]}  e5 {[%clk 0:02:46]} 6. Ne2 {[%clk 0:02:56]}  Ne7 {[%clk 0:02:42]} 7. h4 {[%clk 0:02:44]}  h5 {[%clk 0:02:38]} 8. Nbc3 {[%clk 0:02:41]}  Bd7 {[%clk 0:02:09]} 9. O-O-O {[%clk 0:02:32]}  b5 {[%clk 0:02:09]} 10. Ng3 {[%clk 0:02:20]}  b4 {[%clk 0:02:09]} 11. Nd5 {[%clk 0:02:18]}  Nbc6 {[%clk 0:02:07]} 12. dxe5 {[%clk 0:02:06]}  Bxe5 {[%clk 0:02:03]} 13. Bg5 {[%clk 0:02:01]}  Nxd5 {[%clk 0:01:32]} 14. Bxd8 {[%clk 0:01:41]}  Bf4 {[%clk 0:01:32]} 15. Qxf4 {[%clk 0:01:26]}  Nxf4 {[%clk 0:01:33]} 16. Bxc7 {[%clk 0:01:26]}  Ne6 {[%clk 0:01:33]} 17. Bxd6 {[%clk 0:01:24]}  a5 {[%clk 0:01:31]} 18. e5 {[%clk 0:01:20]}  O-O-O {[%clk 0:01:25]} 19. Ne4 {[%clk 0:01:19]}  Kb7 {[%clk 0:01:24]} 20. g3 {[%clk 0:01:16]}  Ned4 {[%clk 0:01:23]} 21. Bg2 {[%clk 0:01:14]}  Bg4 {[%clk 0:01:21]} 22. Rd3 {[%clk 0:01:02]}  Be2 {[%clk 0:01:15]} 23. Re3 {[%clk 0:00:51]}  Bxc4 {[%clk 0:01:14]} 24. Rd1 {[%clk 0:00:46]}  Nf5 {[%clk 0:00:56]} 25. Ree1 {[%clk 0:00:39]}  Bxa2 {[%clk 0:00:44]} 26. b3 {[%clk 0:00:31]}  Kb6 {[%clk 0:00:33]} 27. Kb2 {[%clk 0:00:29]}  Bxb3 {[%clk 0:00:21]} 28. Kxb3 {[%clk 0:00:30]}  Rhe8 {[%clk 0:00:20]} 29. Bc5+ {[%clk 0:00:25]}  Kc7 {[%clk 0:00:19]} 30. Nd6 {[%clk 0:00:25]}  Rxe5 {[%clk 0:00:18]} 31. Bxc6 {[%clk 0:00:16]}  Rxe1 {[%clk 0:00:18]} 32. Rxe1 {[%clk 0:00:16]}  Kxc6 {[%clk 0:00:18]} 33. Nxf5 {[%clk 0:00:17]}  Kxc5 {[%clk 0:00:13]} 34. Rc1+ {[%clk 0:00:17]}  Kb5 {[%clk 0:00:12]} 35. Ne3 {[%clk 0:00:16]}  a4+ {[%clk 0:00:11]} 36. Kb2 {[%clk 0:00:17]}  b3 {[%clk 0:00:07]} 37. Rc7 {[%clk 0:00:15]}  Rd2+ {[%clk 0:00:05]} 38. Kc1 {[%clk 0:00:15]}  Rxf2 {[%clk 0:00:05]} 39. Rb7+ {[%clk 0:00:13]}  Kc5 {[%clk 0:00:05]} 40. Rd7 {[%clk 0:00:13]}  a3 {[%clk 0:00:05]} 41. Rd3 {[%clk 0:00:12]}  a2 {[%clk 0:00:05]} 42. Rd5+ {[%clk 0:00:07]}  Kc6 {[%clk 0:00:05]} 43. Ra5 {[%clk 0:00:07]}  b2+ {[%clk 0:00:06]} 44. Kd1 {[%clk 0:00:06]}  a1=Q+ {[%clk 0:00:07]} 0-1


[Site "https://www.chess.com"]

[Event "Titled Tuesday Blitz March 22 Early 2022"]
[White "Baker, Chris W"]
[Black "Hnydiuk, Aleksander"]
[WhiteFideId "401676"]
[BlackFideId "1109057"]
[WhiteElo "2291"]
[BlackElo "2374"]
[Result "1/2-1/2"]
[Round "03"]
[TimeControl "180+1"]
[Date "2022.03.22"]
[WhiteClock "0:01:01"]
[BlackClock "0:00:51"]

1. c4 {[%clk 0:02:56]}  Nf6 {[%clk 0:02:59]} 2. Nf3 {[%clk 0:02:54]}  c5 {[%clk 0:02:58]} 3. g3 {[%clk 0:02:53]}  b6 {[%clk 0:02:58]} 4. Bg2 {[%clk 0:02:53]}  Bb7 {[%clk 0:02:58]} 5. O-O {[%clk 0:02:53]}  e6 {[%clk 0:02:57]} 6. d3 {[%clk 0:02:50]}  Be7 {[%clk 0:02:57]} 7. Nc3 {[%clk 0:02:49]}  O-O {[%clk 0:02:57]} 8. b3 {[%clk 0:02:46]}  d5 {[%clk 0:02:55]} 9. cxd5 {[%clk 0:02:43]}  Nxd5 {[%clk 0:02:53]} 10. Nxd5 {[%clk 0:02:42]}  Bxd5 {[%clk 0:02:50]} 11. Bb2 {[%clk 0:02:42]}  Bf6 {[%clk 0:02:44]} 12. Qc2 {[%clk 0:02:39]}  Nc6 {[%clk 0:02:40]} 13. Rad1 {[%clk 0:02:33]}  Rc8 {[%clk 0:02:36]} 14. Qb1 {[%clk 0:02:30]}  e5 {[%clk 0:01:56]} 15. e3 {[%clk 0:02:17]}  Re8 {[%clk 0:01:50]} 16. Qa1 {[%clk 0:02:14]}  Qd6 {[%clk 0:01:34]} 17. Rd2 {[%clk 0:01:59]}  Rcd8 {[%clk 0:01:21]} 18. Rfd1 {[%clk 0:01:58]}  h6 {[%clk 0:01:21]} 19. h4 {[%clk 0:01:41]}  a5 {[%clk 0:01:17]} 20. Bc3 {[%clk 0:01:28]}  Nb4 {[%clk 0:01:14]} 21. Qb2 {[%clk 0:01:25]}  Ba8 {[%clk 0:01:09]} 22. Qb1 {[%clk 0:01:17]}  Nd5 {[%clk 0:01:07]} 23. Ba1 {[%clk 0:01:16]}  Qe6 {[%clk 0:01:04]} 24. a3 {[%clk 0:01:13]}  Qg4 {[%clk 0:01:04]} 25. Nh2 {[%clk 0:01:06]}  Qg6 {[%clk 0:01:03]} 26. Be4 {[%clk 0:01:03]}  Qh5 {[%clk 0:01:00]} 27. Bf3 {[%clk 0:01:01]}  Qg6 {[%clk 0:00:57]} 28. Be4 {[%clk 0:01:01]}  Qh5 {[%clk 0:00:55]} 29. Bf3 {[%clk 0:01:01]}  Qg6 {[%clk 0:00:51]} 30. Be4 {[%clk 0:01:01]} 1/2-1/2


[Site "https://www.chess.com"]

[Event "Titled Tuesday Blitz March 22 Early 2022"]
[White "Batsiashvili, Nino"]
[Black "Hua, Lefong"]
[WhiteFideId "13602993"]
[BlackFideId "2602253"]
[WhiteElo "2192"]
[BlackElo "2595"]
[Result "0-1"]
[Round "03"]
[TimeControl "180+1"]
[Date "2022.03.22"]
[WhiteClock "0:00:14"]
[BlackClock "0:00:14"]

1. d4 {[%clk 0:02:57]}  Nf6 {[%clk 0:02:28]} 2. c4 {[%clk 0:02:54]}  g6 {[%clk 0:02:28]} 3. Nc3 {[%clk 0:02:54]}  Bg7 {[%clk 0:02:29]} 4. Nf3 {[%clk 0:02:54]}  d6 {[%clk 0:02:29]} 5. g3 {[%clk 0:02:54]}  O-O {[%clk 0:02:29]} 6. Bg2 {[%clk 0:02:55]}  Nc6 {[%clk 0:02:30]} 7. O-O {[%clk 0:02:55]}  a6 {[%clk 0:02:30]} 8. b3 {[%clk 0:02:45]}  Rb8 {[%clk 0:02:30]} 9. Bb2 {[%clk 0:02:39]}  b5 {[%clk 0:02:29]} 10. Rb1 {[%clk 0:02:24]}  Bf5 {[%clk 0:02:22]} 11. Rc1 {[%clk 0:02:10]}  bxc4 {[%clk 0:02:21]} 12. e4 {[%clk 0:01:57]}  Nxe4 {[%clk 0:02:04]} 13. Nh4 {[%clk 0:01:56]}  Nxc3 {[%clk 0:02:03]} 14. Rxc3 {[%clk 0:01:57]}  Nxd4 {[%clk 0:01:17]} 15. Rxc4 {[%clk 0:01:53]}  c5 {[%clk 0:01:17]} 16. Nxf5 {[%clk 0:01:43]}  gxf5 {[%clk 0:01:13]} 17. Re1 {[%clk 0:01:38]}  e6 {[%clk 0:01:11]} 18. Bxd4 {[%clk 0:01:25]}  Bxd4 {[%clk 0:01:07]} 19. Rxd4 {[%clk 0:01:25]}  cxd4 {[%clk 0:01:07]} 20. Qxd4 {[%clk 0:01:26]}  e5 {[%clk 0:00:52]} 21. Qd3 {[%clk 0:01:16]}  Qf6 {[%clk 0:00:49]} 22. Bd5 {[%clk 0:01:14]}  a5 {[%clk 0:00:47]} 23. Qa6 {[%clk 0:01:02]}  Rbc8 {[%clk 0:00:47]} 24. Qxa5 {[%clk 0:01:01]}  Rc5 {[%clk 0:00:46]} 25. Qd2 {[%clk 0:01:01]}  Rfc8 {[%clk 0:00:46]} 26. a4 {[%clk 0:00:56]}  Rc2 {[%clk 0:00:45]} 27. Qd3 {[%clk 0:00:52]}  R8c3 {[%clk 0:00:44]} 28. Qb5 {[%clk 0:00:50]}  Kg7 {[%clk 0:00:42]} 29. a5 {[%clk 0:00:48]}  e4 {[%clk 0:00:42]} 30. Qb7 {[%clk 0:00:44]}  Rc7 {[%clk 0:00:38]} 31. Qb6 {[%clk 0:00:42]}  Qe5 {[%clk 0:00:22]} 32. Rd1 {[%clk 0:00:37]}  R2c5 {[%clk 0:00:18]} 33. a6 {[%clk 0:00:34]}  Rc1 {[%clk 0:00:17]} 34. Rxc1 {[%clk 0:00:25]}  Rxc1+ {[%clk 0:00:18]} 35. Kg2 {[%clk 0:00:26]}  Qxd5 {[%clk 0:00:18]} 36. a7 {[%clk 0:00:24]}  Ra1 {[%clk 0:00:16]} 37. Qe3 {[%clk 0:00:21]}  h6 {[%clk 0:00:14]} 38. Qc3+ {[%clk 0:00:14]}  Qe5 {[%clk 0:00:13]} 39. Qc7 {[%clk 0:00:13]}  e3 {[%clk 0:00:12]} 40. fxe3 {[%clk 0:00:13]}  Qe4+ {[%clk 0:00:13]} 41. Kh3 {[%clk 0:00:13]}  Qg4+ {[%clk 0:00:13]} 42. Kg2 {[%clk 0:00:13]}  Ra2+ {[%clk 0:00:14]} 43. Kg1 {[%clk 0:00:14]}  Qd1# {[%clk 0:00:14]} 0-1


[Site "https://www.chess.com"]

[Event "Titled Tuesday Blitz March 22 Early 2022"]
[White "Bodnaruk, Anastasia"]
[Black "Ruge, Edison"]
[WhiteFideId "4181751"]
[BlackFideId "4401000"]
[WhiteElo "2393"]
[BlackElo "2175"]
[Result "0-1"]
[Round "03"]
[TimeControl "180+1"]
[Date "2022.03.22"]
[WhiteClock "0:00:02"]
[BlackClock "0:00:43"]

1. e4 {[%clk 0:03:00]}  e5 {[%clk 0:02:59]} 2. Nf3 {[%clk 0:03:00]}  Nc6 {[%clk 0:03:00]} 3. Bb5 {[%clk 0:03:00]}  f5 {[%clk 0:03:00]} 4. d3 {[%clk 0:02:59]}  fxe4 {[%clk 0:03:00]} 5. dxe4 {[%clk 0:02:59]}  Nf6 {[%clk 0:03:00]} 6. Qd3 {[%clk 0:02:47]}  Bc5 {[%clk 0:02:57]} 7. O-O {[%clk 0:02:40]}  Nd4 {[%clk 0:02:55]} 8. Nxd4 {[%clk 0:02:29]}  Bxd4 {[%clk 0:02:54]} 9. Bc4 {[%clk 0:02:22]}  d6 {[%clk 0:02:52]} 10. Bg5 {[%clk 0:02:16]}  Qe7 {[%clk 0:02:51]} 11. c3 {[%clk 0:02:16]}  Bb6 {[%clk 0:02:50]} 12. Na3 {[%clk 0:02:05]}  Be6 {[%clk 0:02:45]} 13. Kh1 {[%clk 0:02:02]}  O-O {[%clk 0:02:43]} 14. f4 {[%clk 0:01:55]}  exf4 {[%clk 0:02:41]} 15. Rxf4 {[%clk 0:01:54]}  Bxc4 {[%clk 0:02:36]} 16. Nxc4 {[%clk 0:01:50]}  Qe6 {[%clk 0:02:23]} 17. h3 {[%clk 0:01:24]}  Nd7 {[%clk 0:02:19]} 18. Raf1 {[%clk 0:01:16]}  Rxf4 {[%clk 0:02:18]} 19. Rxf4 {[%clk 0:01:16]}  h6 {[%clk 0:02:18]} 20. Bh4 {[%clk 0:01:13]}  Re8 {[%clk 0:02:11]} 21. Rg4 {[%clk 0:00:41]}  h5 {[%clk 0:01:59]} 22. Rf4 {[%clk 0:00:39]}  Nc5 {[%clk 0:01:52]} 23. Qd5 {[%clk 0:00:24]}  Nxe4 {[%clk 0:01:40]} 24. Nxb6 {[%clk 0:00:24]}  axb6 {[%clk 0:01:33]} 25. Qxh5 {[%clk 0:00:24]}  Rf8 {[%clk 0:01:13]} 26. Rxf8+ {[%clk 0:00:21]}  Kxf8 {[%clk 0:01:13]} 27. Qh8+ {[%clk 0:00:21]}  Kf7 {[%clk 0:01:13]} 28. Qd8 {[%clk 0:00:19]}  Qc4 {[%clk 0:01:04]} 29. Kh2 {[%clk 0:00:13]}  Nf6 {[%clk 0:01:02]} 30. Bxf6 {[%clk 0:00:12]}  gxf6 {[%clk 0:01:02]} 31. Qd7+ {[%clk 0:00:12]}  Kg6 {[%clk 0:01:02]} 32. Qg4+ {[%clk 0:00:08]}  Qxg4 {[%clk 0:01:01]} 33. hxg4 {[%clk 0:00:09]}  b5 {[%clk 0:01:00]} 34. Kg3 {[%clk 0:00:08]}  Kg5 {[%clk 0:00:59]} 35. Kf3 {[%clk 0:00:08]}  d5 {[%clk 0:00:58]} 36. Kg3 {[%clk 0:00:02]}  c5 {[%clk 0:00:58]} 37. Kf3 {[%clk 0:00:03]}  b6 {[%clk 0:00:58]} 38. Kg3 {[%clk 0:00:03]}  d4 {[%clk 0:00:44]} 39. cxd4 {[%clk 0:00:03]}  cxd4 {[%clk 0:00:44]} 40. Kf3 {[%clk 0:00:04]}  d3 {[%clk 0:00:42]} 41. Ke3 {[%clk 0:00:04]}  Kxg4 {[%clk 0:00:42]} 42. Kxd3 {[%clk 0:00:04]}  Kg3 {[%clk 0:00:43]} 43. Ke4 {[%clk 0:00:05]}  Kg4 {[%clk 0:00:43]} 44. Kd5 {[%clk 0:00:02]}  f5 {[%clk 0:00:43]} 0-1


[Site "https://www.chess.com"]

[Event "Titled Tuesday Blitz March 22 Early 2022"]
[White "Bongo Akanga Ndjila, Barthelemy"]
[Black "Dudzinski, Pawel"]
[WhiteFideId "10609431"]
[BlackFideId "1117890"]
[WhiteElo "1803"]
[BlackElo "2033"]
[Result "1-0"]
[Round "03"]
[TimeControl "180+1"]
[Date "2022.03.22"]
[WhiteClock "0:00:15"]
[BlackClock "0:00:03"]

1. d4 {[%clk 0:03:00]}  f5 {[%clk 0:02:58]} 2. c4 {[%clk 0:03:00]}  Nf6 {[%clk 0:02:59]} 3. Nc3 {[%clk 0:03:00]}  d6 {[%clk 0:03:00]} 4. Nf3 {[%clk 0:02:59]}  g6 {[%clk 0:03:00]} 5. g3 {[%clk 0:02:59]}  Bg7 {[%clk 0:03:01]} 6. Bf4 {[%clk 0:02:59]}  O-O {[%clk 0:03:01]} 7. e3 {[%clk 0:02:59]}  Nh5 {[%clk 0:03:00]} 8. Be2 {[%clk 0:02:52]}  Nxf4 {[%clk 0:02:54]} 9. exf4 {[%clk 0:02:51]}  Qe8 {[%clk 0:02:54]} 10. d5 {[%clk 0:02:46]}  e5 {[%clk 0:02:48]} 11. dxe6 {[%clk 0:02:45]}  Bxe6 {[%clk 0:02:44]} 12. O-O {[%clk 0:02:44]}  h6 {[%clk 0:02:28]} 13. Nd5 {[%clk 0:02:44]}  c6 {[%clk 0:02:26]} 14. Nc7 {[%clk 0:02:43]}  Qe7 {[%clk 0:02:17]} 15. Nxa8 {[%clk 0:02:41]}  Na6 {[%clk 0:02:18]} 16. Rc1 {[%clk 0:02:32]}  Bxb2 {[%clk 0:02:07]} 17. Rc2 {[%clk 0:02:27]}  Bf6 {[%clk 0:02:05]} 18. Rd2 {[%clk 0:02:27]}  Rxa8 {[%clk 0:01:48]} 19. Rxd6 {[%clk 0:02:25]}  Nc5 {[%clk 0:01:48]} 20. Ne5 {[%clk 0:02:20]}  Ne4 {[%clk 0:01:39]} 21. Rd3 {[%clk 0:02:10]}  Bxe5 {[%clk 0:01:33]} 22. fxe5 {[%clk 0:02:08]}  Bxc4 {[%clk 0:01:34]} 23. Rd7 {[%clk 0:02:06]}  Qe6 {[%clk 0:01:13]} 24. Rxb7 {[%clk 0:01:53]}  Bd5 {[%clk 0:01:03]} 25. Qc2 {[%clk 0:01:45]}  Qxe5 {[%clk 0:00:57]} 26. Rfb1 {[%clk 0:01:43]}  Re8 {[%clk 0:00:55]} 27. Bc4 {[%clk 0:01:41]}  Ng5 {[%clk 0:00:35]} 28. Bxd5+ {[%clk 0:01:18]}  cxd5 {[%clk 0:00:31]} 29. Qc7 {[%clk 0:00:55]}  Qd4 {[%clk 0:00:11]} 30. h4 {[%clk 0:00:39]}  Nf3+ {[%clk 0:00:10]} 31. Kg2 {[%clk 0:00:39]}  Nxh4+ {[%clk 0:00:10]} 32. gxh4 {[%clk 0:00:25]}  Qg4+ {[%clk 0:00:08]} 33. Qg3 {[%clk 0:00:25]}  Qe4+ {[%clk 0:00:09]} 34. Kh2 {[%clk 0:00:25]}  g5 {[%clk 0:00:06]} 35. hxg5 {[%clk 0:00:23]}  f4 {[%clk 0:00:06]} 36. Qg4 {[%clk 0:00:21]}  Kh8 {[%clk 0:00:03]} 37. gxh6 {[%clk 0:00:18]}  Rg8 {[%clk 0:00:03]} 38. Rb8 {[%clk 0:00:15]} 1-0


[Site "https://www.chess.com"]

[Event "Titled Tuesday Blitz March 22 Early 2022"]
[White "Borodavkin, Anatoly"]
[Black "Alinasab, Mobina"]
[WhiteFideId "14150662"]
[BlackFideId "12528897"]
[WhiteElo "1845"]
[BlackElo "2052"]
[Result "1-0"]
[Round "03"]
[TimeControl "180+1"]
[Date "2022.03.22"]
[WhiteClock "0:00:15"]
[BlackClock "0:00:03"]

1. e4 {[%clk 0:03:00]}  c5 {[%clk 0:02:59]} 2. Nc3 {[%clk 0:03:00]}  Nc6 {[%clk 0:02:58]} 3. g3 {[%clk 0:03:01]}  g6 {[%clk 0:02:59]} 4. Bg2 {[%clk 0:03:02]}  Bg7 {[%clk 0:03:00]} 5. d3 {[%clk 0:03:02]}  d6 {[%clk 0:02:59]} 6. f4 {[%clk 0:03:02]}  e6 {[%clk 0:03:00]} 7. Nf3 {[%clk 0:03:01]}  Nge7 {[%clk 0:03:00]} 8. O-O {[%clk 0:03:02]}  O-O {[%clk 0:03:01]} 9. Be3 {[%clk 0:03:02]}  Rb8 {[%clk 0:03:00]} 10. Qd2 {[%clk 0:02:53]}  Nd4 {[%clk 0:02:59]} 11. g4 {[%clk 0:02:21]}  b5 {[%clk 0:02:57]} 12. Nd1 {[%clk 0:02:20]}  b4 {[%clk 0:02:56]} 13. c3 {[%clk 0:02:17]}  bxc3 {[%clk 0:02:57]} 14. bxc3 {[%clk 0:02:17]}  Nxf3+ {[%clk 0:02:57]} 15. Bxf3 {[%clk 0:02:16]}  Ba6 {[%clk 0:02:58]} 16. Nf2 {[%clk 0:02:07]}  Qa5 {[%clk 0:02:57]} 17. Rac1 {[%clk 0:01:54]}  Rb7 {[%clk 0:02:49]} 18. f5 {[%clk 0:01:50]}  Rfb8 {[%clk 0:02:44]} 19. Bh6 {[%clk 0:01:28]}  Rb2 {[%clk 0:02:34]} 20. Qg5 {[%clk 0:01:27]}  f6 {[%clk 0:02:30]} 21. Qh4 {[%clk 0:01:26]}  exf5 {[%clk 0:02:21]} 22. Bxg7 {[%clk 0:01:19]}  Kxg7 {[%clk 0:02:20]} 23. gxf5 {[%clk 0:01:15]}  g5 {[%clk 0:02:18]} 24. Qh5 {[%clk 0:01:08]}  Rxa2 {[%clk 0:01:46]} 25. Ng4 {[%clk 0:00:57]}  Ng8 {[%clk 0:01:46]} 26. h4 {[%clk 0:00:57]}  gxh4 {[%clk 0:01:37]} 27. e5 {[%clk 0:00:44]}  dxe5 {[%clk 0:01:22]} 28. Bd5 {[%clk 0:00:41]}  Bxd3 {[%clk 0:00:31]} 29. Qf7+ {[%clk 0:00:15]}  Kh8 {[%clk 0:00:20]} 30. Nxf6 {[%clk 0:00:15]}  Rg2+ {[%clk 0:00:05]} 31. Kxg2 {[%clk 0:00:16]}  Rb2+ {[%clk 0:00:03]} 32. Kg1 {[%clk 0:00:16]}  Bxf5 {[%clk 0:00:03]} 33. Qxg8# {[%clk 0:00:15]} 1-0


[Site "https://www.chess.com"]

[Event "Titled Tuesday Blitz March 22 Early 2022"]
[White "Bortnyk, Olexandr"]
[Black "Siva Mahadevan"]
[WhiteFideId "14120828"]
[BlackFideId "25043153"]
[WhiteElo "2723"]
[BlackElo "2203"]
[Result "1/2-1/2"]
[Round "03"]
[TimeControl "180+1"]
[Date "2022.03.22"]
[WhiteClock "0:00:18"]
[BlackClock "0:00:09"]

1. e4 {[%clk 0:02:42]}  c5 {[%clk 0:02:58]} 2. c3 {[%clk 0:02:41]}  e5 {[%clk 0:02:57]} 3. Nf3 {[%clk 0:02:40]}  Nc6 {[%clk 0:02:58]} 4. Bc4 {[%clk 0:02:40]}  Be7 {[%clk 0:02:58]} 5. d4 {[%clk 0:02:39]}  cxd4 {[%clk 0:02:59]} 6. cxd4 {[%clk 0:02:40]}  exd4 {[%clk 0:02:59]} 7. O-O {[%clk 0:02:39]}  Nf6 {[%clk 0:02:26]} 8. e5 {[%clk 0:02:36]}  Ne4 {[%clk 0:02:25]} 9. Bd5 {[%clk 0:02:27]}  Nc5 {[%clk 0:02:24]} 10. Nxd4 {[%clk 0:02:17]}  O-O {[%clk 0:01:59]} 11. Re1 {[%clk 0:01:58]}  Nxd4 {[%clk 0:01:55]} 12. Qxd4 {[%clk 0:01:59]}  Ne6 {[%clk 0:01:56]} 13. Qe4 {[%clk 0:01:49]}  d6 {[%clk 0:01:55]} 14. exd6 {[%clk 0:01:46]}  Bxd6 {[%clk 0:01:56]} 15. Nc3 {[%clk 0:01:47]}  Nc5 {[%clk 0:01:49]} 16. Qf3 {[%clk 0:01:44]}  Be6 {[%clk 0:01:49]} 17. Bxe6 {[%clk 0:01:38]}  Nxe6 {[%clk 0:01:49]} 18. Qxb7 {[%clk 0:01:37]}  Nd4 {[%clk 0:01:05]} 19. Qe4 {[%clk 0:01:22]}  Re8 {[%clk 0:00:28]} 20. Qxe8+ {[%clk 0:01:21]}  Qxe8 {[%clk 0:00:29]} 21. Rxe8+ {[%clk 0:01:22]}  Rxe8 {[%clk 0:00:30]} 22. Bd2 {[%clk 0:01:21]}  Ne2+ {[%clk 0:00:21]} 23. Nxe2 {[%clk 0:01:16]}  Rxe2 {[%clk 0:00:22]} 24. Rd1 {[%clk 0:01:17]}  f6 {[%clk 0:00:15]} 25. Kf1 {[%clk 0:01:14]}  Re6 {[%clk 0:00:14]} 26. Be3 {[%clk 0:01:13]}  a6 {[%clk 0:00:14]} 27. Rd5 {[%clk 0:01:13]}  Bxh2 {[%clk 0:00:13]} 28. b4 {[%clk 0:01:10]}  Be5 {[%clk 0:00:11]} 29. a4 {[%clk 0:01:09]}  h5 {[%clk 0:00:12]} 30. f4 {[%clk 0:01:00]}  Bc3 {[%clk 0:00:11]} 31. Bc5 {[%clk 0:00:59]}  Re4 {[%clk 0:00:12]} 32. b5 {[%clk 0:00:58]}  Rxf4+ {[%clk 0:00:11]} 33. Ke2 {[%clk 0:00:58]}  Rxa4 {[%clk 0:00:12]} 34. b6 {[%clk 0:00:59]}  Ra2+ {[%clk 0:00:11]} 35. Kd3 {[%clk 0:00:59]}  Be5 {[%clk 0:00:12]} 36. Rxe5 {[%clk 0:00:49]}  fxe5 {[%clk 0:00:12]} 37. Bb4 {[%clk 0:00:50]}  Ra4 {[%clk 0:00:08]} 38. Kc3 {[%clk 0:00:43]}  a5 {[%clk 0:00:07]} 39. Bc5 {[%clk 0:00:43]}  Ra1 {[%clk 0:00:05]} 40. Kc2 {[%clk 0:00:43]}  Ra2+ {[%clk 0:00:02]} 41. Kc3 {[%clk 0:00:25]}  Ra1 {[%clk 0:00:02]} 42. Kb2 {[%clk 0:00:25]}  Rd1 {[%clk 0:00:02]} 43. b7 {[%clk 0:00:26]}  Rd8 {[%clk 0:00:02]} 44. Bd6 {[%clk 0:00:27]}  Kf7 {[%clk 0:00:03]} 45. Bxe5 {[%clk 0:00:28]}  Ke6 {[%clk 0:00:03]} 46. Bc7 {[%clk 0:00:25]}  Re8 {[%clk 0:00:04]} 47. Kc3 {[%clk 0:00:25]}  Kd7 {[%clk 0:00:04]} 48. b8=Q {[%clk 0:00:25]}  Rxb8 {[%clk 0:00:04]} 49. Bxb8 {[%clk 0:00:26]}  Ke6 {[%clk 0:00:05]} 50. Kd3 {[%clk 0:00:24]}  Kf5 {[%clk 0:00:05]} 51. Ke3 {[%clk 0:00:23]}  g5 {[%clk 0:00:06]} 52. Bd6 {[%clk 0:00:16]}  a4 {[%clk 0:00:07]} 53. Be7 {[%clk 0:00:16]}  h4 {[%clk 0:00:07]} 54. Kf2 {[%clk 0:00:16]}  Kg4 {[%clk 0:00:07]} 55. Bd6 {[%clk 0:00:15]}  h3 {[%clk 0:00:07]} 56. g3 {[%clk 0:00:15]}  a3 {[%clk 0:00:06]} 57. Bxa3 {[%clk 0:00:15]}  h2 {[%clk 0:00:06]} 58. Kg2 {[%clk 0:00:16]}  h1=Q+ {[%clk 0:00:07]} 59. Kxh1 {[%clk 0:00:16]}  Kxg3 {[%clk 0:00:08]} 60. Be7 {[%clk 0:00:16]}  g4 {[%clk 0:00:08]} 61. Bd6+ {[%clk 0:00:17]}  Kh3 {[%clk 0:00:09]} 62. Bc7 {[%clk 0:00:18]}  g3 {[%clk 0:00:09]} 63. Bxg3 {[%clk 0:00:18]} 1/2-1/2


[Site "https://www.chess.com"]

[Event "Titled Tuesday Blitz March 22 Early 2022"]
[White "Cupid, Kevin"]
[Black "Rengifo Blancas, Renzo Jhonathan"]
[WhiteFideId "7700512"]
[BlackFideId "3807185"]
[WhiteElo "2096"]
[BlackElo "2058"]
[Result "1-0"]
[Round "03"]
[TimeControl "180+1"]
[Date "2022.03.22"]
[WhiteClock "0:00:16"]
[BlackClock "0:00:07"]

1. d4 {[%clk 0:03:00]}  d5 {[%clk 0:03:00]} 2. c4 {[%clk 0:03:01]}  c5 {[%clk 0:03:00]} 3. cxd5 {[%clk 0:03:00]}  cxd4 {[%clk 0:03:00]} 4. Nf3 {[%clk 0:02:59]}  Qxd5 {[%clk 0:02:54]} 5. Nc3 {[%clk 0:02:59]}  Qa5 {[%clk 0:02:53]} 6. Nxd4 {[%clk 0:02:58]}  Nf6 {[%clk 0:02:53]} 7. Nb3 {[%clk 0:02:57]}  Qe5 {[%clk 0:02:47]} 8. g3 {[%clk 0:02:47]}  Nc6 {[%clk 0:02:46]} 9. Bg2 {[%clk 0:02:46]}  Bf5 {[%clk 0:02:46]} 10. Bf4 {[%clk 0:02:44]}  Qe6 {[%clk 0:02:42]} 11. Nb5 {[%clk 0:02:41]}  Rc8 {[%clk 0:02:17]} 12. Nc7+ {[%clk 0:02:33]}  Rxc7 {[%clk 0:02:17]} 13. Bxc7 {[%clk 0:02:33]}  Qc8 {[%clk 0:02:17]} 14. Bf4 {[%clk 0:02:25]}  e5 {[%clk 0:02:17]} 15. Bd2 {[%clk 0:02:25]}  Be7 {[%clk 0:02:16]} 16. O-O {[%clk 0:02:25]}  O-O {[%clk 0:02:17]} 17. Rc1 {[%clk 0:02:24]}  Rd8 {[%clk 0:02:17]} 18. Qe1 {[%clk 0:02:24]}  Bh3 {[%clk 0:02:15]} 19. Nc5 {[%clk 0:02:18]}  Bxg2 {[%clk 0:01:55]} 20. Kxg2 {[%clk 0:02:17]}  b6 {[%clk 0:01:27]} 21. Nd3 {[%clk 0:02:06]}  Qb7 {[%clk 0:01:27]} 22. Kg1 {[%clk 0:02:05]}  Nd4 {[%clk 0:01:21]} 23. Nxe5 {[%clk 0:01:28]}  Qe4 {[%clk 0:01:20]} 24. Nf3 {[%clk 0:01:11]}  Nxe2+ {[%clk 0:01:11]} 25. Kg2 {[%clk 0:01:11]}  Nxc1 {[%clk 0:01:04]} 26. Bxc1 {[%clk 0:01:04]}  h6 {[%clk 0:00:55]} 27. h3 {[%clk 0:00:55]}  Bb4 {[%clk 0:00:53]} 28. Qxe4 {[%clk 0:00:53]}  Nxe4 {[%clk 0:00:54]} 29. Be3 {[%clk 0:00:51]}  Rc8 {[%clk 0:00:44]} 30. a3 {[%clk 0:00:51]}  Bf8 {[%clk 0:00:43]} 31. Rd1 {[%clk 0:00:50]}  Rc2 {[%clk 0:00:42]} 32. Rd4 {[%clk 0:00:44]}  Nd6 {[%clk 0:00:35]} 33. Bf4 {[%clk 0:00:31]}  Nf5 {[%clk 0:00:31]} 34. Rd8 {[%clk 0:00:31]}  g5 {[%clk 0:00:17]} 35. Be5 {[%clk 0:00:25]}  Ne3+ {[%clk 0:00:14]} 36. Kg1 {[%clk 0:00:23]}  Rc1+ {[%clk 0:00:14]} 37. Kh2 {[%clk 0:00:23]}  Nc4 {[%clk 0:00:10]} 38. Bc3 {[%clk 0:00:20]}  Rc2 {[%clk 0:00:09]} 39. Kg1 {[%clk 0:00:19]}  Rc1+ {[%clk 0:00:09]} 40. Kg2 {[%clk 0:00:19]}  a5 {[%clk 0:00:07]} 41. Ne5 {[%clk 0:00:19]}  Rc2 {[%clk 0:00:06]} 42. Nxc4 {[%clk 0:00:18]}  b5 {[%clk 0:00:05]} 43. Ne3 {[%clk 0:00:18]}  Re2 {[%clk 0:00:04]} 44. Bxa5 {[%clk 0:00:18]}  Kg7 {[%clk 0:00:05]} 45. Bc3+ {[%clk 0:00:17]}  f6 {[%clk 0:00:04]} 46. Nf5+ {[%clk 0:00:16]}  Kg6 {[%clk 0:00:03]} 47. Rxf8 {[%clk 0:00:16]}  Kxf5 {[%clk 0:00:03]} 48. Rxf6+ {[%clk 0:00:16]}  Ke4 {[%clk 0:00:04]} 49. Re6+ {[%clk 0:00:16]}  Kd3 {[%clk 0:00:04]} 50. Rxe2 {[%clk 0:00:16]}  Kxe2 {[%clk 0:00:05]} 51. g4 {[%clk 0:00:16]}  h5 {[%clk 0:00:06]} 52. gxh5 {[%clk 0:00:16]}  b4 {[%clk 0:00:06]} 53. axb4 {[%clk 0:00:15]}  g4 {[%clk 0:00:07]} 54. hxg4 {[%clk 0:00:16]} 1-0


[Site "https://www.chess.com"]